fUST/lending_fUST_20250114
["ID","MTS","AMOUNT","RATE_DAILY","PERIOD"]
[348869222,1736833842936,-500.0,0.00021917,3]
[348869223,1736833842945,-515.04668556,0.00021917,3]
[348869224,1736833842955,-504.49488131,0.00021917,3]
[348869225,1736833842964,-1069.51,0.00021917,3]
[348869226,1736833842974,-500.0,0.00021917,3]
[348869227,1736833842984,-500.0,0.00021917,3]
[348869228,1736833842995,-502.70070654,0.00021917,3]
[348869229,1736833843004,-504.74718382,0.00021917,3]
[348869230,1736833843013,-500.0,0.00021917,3]
[348869231,1736833843024,-500.0,0.00021917,3]
[348869232,1736833843035,-502.11186445,0.00021917,3]
[348869233,1736833843045,-500.0,0.00021917,3]
[348869234,1736833843056,-557.08346707,0.00021917,3]
[348869235,1736833843065,-500.0,0.00021917,2]
[348869236,1736833843076,-500.0,0.00021917,3]
[348869237,1736833843085,-500.0,0.00021917,3]
[348869238,1736833843095,-503.66354493,0.00021917,3]
[348869239,1736833843105,-500.0,0.00021917,2]
[348869240,1736833843114,-551.39,0.00021917,3]
[348869241,1736833843124,-500.0,0.00021917,3]
[348869242,1736833843134,-500.0,0.00021917,3]
[348869243,1736833843144,-500.0,0.00021917,3]
[348869244,1736833843154,-1191.56,0.00021917,3]
[348869245,1736833843163,-500.0,0.00021917,3]
[348869246,1736833843173,-500.0,0.00021917,3]
[348869247,1736833843183,-4591.13,0.00021917,3]
[348869248,1736833843193,-500.0,0.00021917,3]
[348869249,1736833843203,-500.0,0.00021917,3]
[348869250,1736833843213,-500.0,0.00021917,3]
[348869251,1736833843222,-500.0,0.00021917,3]
[348869252,1736833843232,-500.93157733,0.00021917,3]
[348869253,1736833843241,-504.1060122,0.00021917,3]
[348869262,1736833843370,-500.0,0.00021917,3]
[348869265,1736833843402,-500.0,0.00021917,3]
[348869267,1736833843411,-500.0,0.00021917,3]
[348869269,1736833843421,-500.0,0.00021917,3]
[348869271,1736833843430,-500.0,0.00021917,3]
[348869273,1736833843440,-454.8969347,0.00021917,3]
[348869275,1736833843449,-500.0,0.00021917,3]
[348869277,1736833843459,-193.85509021,0.00021917,3]
[348869278,1736833843468,-502.42523481,0.00021917,3]
[348869279,1736833843478,-500.0,0.00021917,3]
[348869280,1736833843487,-500.38349074,0.00021917,3]
[348869281,1736833843496,-579.64,0.00021917,3]
[348869282,1736833843506,-1668.06,0.00021917,3]
[348869283,1736833843515,-500.0,0.00021917,3]
[348869284,1736833843524,-500.0,0.00021917,3]
[348869285,1736833843533,-502.88633337,0.00021917,3]
[348869286,1736833843543,-500.0,0.00021917,3]
[348869287,1736833843553,-500.0,0.00021917,3]
[348869288,1736833843563,-500.0,0.00021917,3]
[348869289,1736833843572,-37038.3,0.00021917,3]
[348869290,1736833843581,-500.0,0.00021917,3]
[348869291,1736833843591,-500.0,0.00021917,3]
[348869292,1736833843600,-500.98268365,0.00021917,3]
[348869293,1736833843609,-500.0,0.00021917,3]
[348869294,1736833843618,-500.0,0.00021917,3]
[348869295,1736833843627,-612.08,0.00021917,3]
[348869296,1736833843637,-500.0,0.00021917,3]
[348869297,1736833843646,-500.0,0.00021917,3]
[348869298,1736833843655,-500.0,0.00021917,3]
[348869299,1736833843665,-500.0,0.00021917,3]
[348869300,1736833843674,-23254.81045152,0.00021917,2]
[348869301,1736833843914,-496.750002,0.00021917,2]
[348869302,1736833844232,-300.0,0.00021917,2]
[348869351,1736833846815,-6486.51954648,0.00021917,2]
[348869353,1736833846825,-500.0,0.00021917,3]
[348869355,1736833846834,-1918.61,0.00021917,3]
[348869357,1736833846843,-500.0,0.00021917,3]
[348869359,1736833846852,-500.0,0.00021917,3]
[348869361,1736833846862,-500.0,0.00021917,3]
[348869363,1736833846872,-500.0,0.00021917,2]
[348869365,1736833846881,-525.44971215,0.00021917,3]
[348869367,1736833846890,-1083.77,0.00021917,3]
[348869369,1736833846900,-1000.86,0.00021917,3]
[348869371,1736833846909,-500.0,0.00021917,3]
[348869373,1736833846919,-500.0,0.00021917,3]
[348869375,1736833846928,-500.0,0.00021917,3]
[348869377,1736833846938,-502.25826991,0.00021917,3]
[348869379,1736833846947,-500.0,0.00021917,3]
[348869381,1736833846956,-500.0,0.00021917,3]
[348869383,1736833846965,-500.99127048,0.00021917,3]
[348869385,1736833846976,-2043.76,0.00021917,3]
[348869387,1736833846985,-501.89607059,0.00021917,3]
[348869389,1736833846995,-1391.73,0.00021917,3]
[348869391,1736833847004,-500.0,0.00021917,3]
[348869393,1736833847013,-500.0,0.00021917,3]
[348869395,1736833847024,-500.0,0.00021917,3]
[348869398,1736833847034,-501.30861695,0.00021917,3]
[348869399,1736833847044,-500.0,0.00021917,3]
[348869402,1736833847054,-500.0,0.00021917,3]
[348869404,1736833847063,-500.0,0.00021917,3]
[348869406,1736833847073,-500.53952647,0.00021917,3]
[348869408,1736833847082,-1815.39,0.00021917,3]
[348869411,1736833847103,-500.0,0.00021917,3]
[348869413,1736833847114,-500.0,0.00021917,3]
[348869415,1736833847124,-530.53,0.00021917,3]
[348869417,1736833847134,-500.0,0.00021917,3]
[348869419,1736833847143,-500.0,0.00021917,3]
[348869421,1736833847153,-5951.25,0.00021917,3]
[348869423,1736833847164,-621.1,0.00021917,3]
[348869425,1736833847174,-500.0,0.00021917,3]
[348869427,1736833847183,-500.0,0.00021917,3]
[348869429,1736833847195,-500.0,0.00021917,3]
[348869432,1736833847205,-500.0,0.00021917,3]
[348869434,1736833847215,-500.0,0.00021917,3]
[348869436,1736833847224,-640.15455881,0.00021917,3]
[348869438,1736833847234,-500.0,0.00021917,3]
[348869440,1736833847244,-8780.88,0.00021917,3]
[348869442,1736833847254,-582.30658565,0.00021917,3]
[348869444,1736833847263,-500.0,0.00021917,3]
[348869446,1736833847273,-502.42918887,0.00021917,3]
[348869448,1736833847282,-500.0,0.00021917,3]
[348869450,1736833847291,-500.0,0.00021917,3]
[348869452,1736833847301,-500.0,0.00021917,3]
[348869454,1736833847311,-500.0,0.00021917,3]
[348869456,1736833847320,-500.0,0.00021917,3]
[348869458,1736833847329,-500.79655473,0.00021917,3]
[348869460,1736833847339,-705.13,0.00021917,3]
[348869462,1736833847349,-150.23,0.00021917,2]
[348869464,1736833847358,-500.0,0.00021917,3]
[348869466,1736833847372,-500.0,0.00021917,3]
[348869469,1736833847382,-150.23,0.00021917,2]
[348869471,1736833847392,-500.0,0.00021917,2]
[348869473,1736833847401,-150.23,0.00021917,2]
[348869475,1736833847411,-150.23,0.00021917,2]
[348869477,1736833847421,-500.0,0.00021917,3]
[348869479,1736833847431,-150.23,0.00021917,2]
[348869481,1736833847441,-150.23,0.00021917,2]
[348869504,1736833847653,-500.0,0.00021917,3]
[348869505,1736833847663,-500.0,0.00021917,3]
[348869506,1736833847672,-500.0,0.00021917,3]
[348869507,1736833847682,-500.0,0.00021917,3]
[348869508,1736833847691,-500.0,0.00021917,3]
[348869509,1736833847700,-500.0,0.00021917,3]
[348869510,1736833847710,-150.0,0.00021917,3]
[348869511,1736833847719,-500.0,0.00021917,2]
[348869512,1736833847728,-500.0,0.00021917,3]
[348869513,1736833847738,-500.0,0.00021917,3]
[348869514,1736833847747,-973.12,0.00021917,3]
[348869515,1736833847757,-151.0,0.00021917,2]
[348869516,1736833847766,-164.40251,0.00021917,2]
[348869517,1736833847775,-500.0,0.00021917,2]
[348869518,1736833847784,-2001.4,0.00021917,3]
[348869519,1736833847794,-500.0,0.00021917,3]
[348869520,1736833847803,-500.0,0.00021917,3]
[348869521,1736833847812,-150.23,0.00021917,2]
[348869522,1736833847822,-500.0,0.00021917,3]
[348869523,1736833847831,-500.0,0.00021917,3]
[348869524,1736833847841,-500.0,0.00021917,2]
[348869525,1736833847851,-150.23,0.00021917,2]
[348869526,1736833847860,-150.23,0.00021917,2]
[348869527,1736833847873,-607.85,0.00021917,3]
[348869528,1736833847883,-500.0,0.00021917,3]
[348869529,1736833847892,-500.0,0.00021917,3]
[348869530,1736833847902,-500.0,0.00021917,3]
[348869531,1736833847912,-500.0,0.00021917,3]
[348869532,1736833847921,-500.0,0.00021917,3]
[348869533,1736833847931,-502.6689319,0.00021917,3]
[348869534,1736833847940,-500.0,0.00021917,3]
[348869535,1736833847950,-500.0,0.00021917,3]
[348869536,1736833847960,-500.0,0.00021917,3]
[348869537,1736833847969,-500.0,0.00021917,3]
[348869538,1736833847979,-500.0,0.00021917,3]
[348869539,1736833847989,-500.0,0.00021917,3]
[348869540,1736833847999,-500.0,0.00021917,3]
[348869541,1736833848008,-500.0,0.00021917,3]
[348869542,1736833848018,-500.0,0.00021917,3]
[348869543,1736833848031,-500.0,0.00021917,3]
[348869544,1736833848041,-640.14,0.00021917,3]
[348869545,1736833848051,-500.83493247,0.00021917,3]
[348869546,1736833848062,-403.92644691,0.00021917,3]
[348869547,1736833848073,-500.0,0.00021917,3]
[348869548,1736833848084,-505.58925222,0.00021917,3]
[348869549,1736833848094,-500.0,0.00021917,3]
[348869550,1736833848105,-500.0,0.00021917,3]
[348869551,1736833848115,-500.0,0.00021917,3]
[348869552,1736833848126,-310.98675085,0.00021917,3]
[348869553,1736833848136,-500.0,0.00021917,3]
[348869554,1736833848146,-500.0,0.00021917,3]
[348869555,1736833848156,-500.0,0.00021917,3]
[348869556,1736833848166,-500.0,0.00021917,3]
[348869557,1736833848176,-501.81365748,0.00021917,3]
[348869558,1736833848187,-500.0,0.00021917,3]
[348869559,1736833848198,-152.152907,0.00021917,2]
[348869560,1736833848208,-500.0,0.00021917,3]
[348869561,1736833848218,-225.95690783,0.00021917,3]
[348869563,1736833989070,200.0,0.00023989,30]
[348869565,1736834158336,165.524969,0.00013973,2]
[348869566,1736834625188,10000.0,0.00024,30]
[348869567,1736834636104,10000.0,0.00024,30]
[348869568,1736834830147,-476.61558094,0.0002061,2]
[348869569,1736834832129,-2592.35865752,0.0002061,2]
[348869570,1736834841124,-396.02576154,0.0002061,2]
[348869571,1736834841148,-350.031,0.0002082,2]
[348869572,1736834841170,-328.98429319,0.00021717,2]
[348869573,1736834842101,-493.92954219,0.00021717,2]
[348869574,1736834842125,-300.0,0.0002175,2]
[348869575,1736834842148,-1504.64315944,0.00021751,2]
[348869576,1736834846783,5002.607,0.00024,30]
[348869577,1736834850094,-566.90413778,0.00021751,2]
[348869580,1736835000418,165.48056,0.00013973,2]
[348869584,1736835016749,200.0,0.00025,120]
[348869614,1736835037907,-119.44900608,0.00019973,2]
[348869616,1736835037920,-40.7741362,0.00019973,2]
[348869618,1736835037930,-300.0,0.0002175,2]
[348869619,1736835037939,-298.0,0.0002175,2]
[348869620,1736835037949,-17928.45270278,0.00021751,2]
[348869621,1736835037958,-720.04960594,0.000218,2]
[348869623,1736835037967,-162.517,0.00021816,2]
[348869625,1736835037976,-500.0,0.00021816,7]
[348869627,1736835037986,-18612.91807622,0.00021817,3]
[348869629,1736835037998,-15187.20757276,0.00021817,3]
[348869632,1736835038008,-160.0,0.00021817,3]
[348869634,1736835038017,-16791.44337783,0.00021852,2]
[348869636,1736835038030,-3208.55662217,0.00021852,2]
[348869638,1736835038040,-150.0,0.000219,2]
[348869640,1736835038049,-358.1414053,0.000219,2]
[348869642,1736835038059,-508.72246173,0.00021916,2]
[348869644,1736835038068,-320.10605672,0.00021916,2]
[348869812,1736835040170,-114.19631175,0.00021916,2]
[348869813,1736835040181,-252.86237664,0.00021916,2]
[348869814,1736835040191,-500.0,0.00021916,2]
[348869815,1736835040201,-500.0,0.00021916,2]
[348869816,1736835040212,-500.0,0.00021916,2]
[348869817,1736835040222,-382.70484066,0.00021916,2]
[348869818,1736835040232,-500.39592519,0.00021916,2]
[348869819,1736835040241,-411.40217596,0.00021916,2]
[348869820,1736835040251,-151.0,0.00021916,2]
[348869821,1736835040264,-182.71857842,0.00021916,2]
[348869822,1736835040274,-500.0,0.00021917,3]
[348869823,1736835040285,-501.241854,0.00021917,3]
[348869824,1736835040295,-500.0,0.00021917,3]
[348869825,1736835040305,-500.0,0.00021917,3]
[348869826,1736835040314,-500.0,0.00021917,3]
[348869827,1736835040324,-500.0,0.00021917,3]
[348869828,1736835040334,-506.69830033,0.00021917,3]
[348869829,1736835040343,-503.57518544,0.00021917,3]
[348869830,1736835040353,-500.0,0.00021917,3]
[348869831,1736835040363,-500.0,0.00021917,3]
[348869832,1736835040373,-500.0,0.00021917,3]
[348869833,1736835040383,-500.0,0.00021917,3]
[348869834,1736835040393,-505.09607848,0.00021917,3]
[348869835,1736835040403,-508.96256459,0.00021917,3]
[348869836,1736835040413,-500.0,0.00021917,3]
[348869837,1736835040423,-500.0,0.00021917,3]
[348869838,1736835040433,-500.0,0.00021917,3]
[348869839,1736835040443,-500.0,0.00021917,3]
[348869840,1736835040453,-500.0,0.00021917,3]
[348869841,1736835040462,-500.0,0.00021917,3]
[348869842,1736835040473,-500.0,0.00021917,3]
[348869843,1736835040483,-500.0,0.00021917,3]
[348869844,1736835040493,-500.0,0.00021917,3]
[348869845,1736835040502,-500.0,0.00021917,3]
[348869846,1736835040512,-500.0,0.00021917,3]
[348869847,1736835040522,-516.73129084,0.00021917,3]
[348869848,1736835040532,-500.0,0.00021917,3]
[348869849,1736835040541,-500.0,0.00021917,3]
[348869850,1736835040551,-457.4145177,0.00021917,3]
[348869877,1736835043120,-470.812927,0.00021916,2]
[348870005,1736835045912,-29.187073,0.00021916,2]
[348870007,1736835045923,-500.0,0.00021916,2]
[348870009,1736835045934,-500.0,0.00021916,2]
[348870011,1736835045944,-264.35275619,0.00021916,2]
[348870013,1736835045954,-500.00000001,0.00021916,2]
[348870015,1736835045964,-45.71379144,0.00021917,3]
[348870017,1736835045973,-500.0,0.00021917,3]
[348870019,1736835045983,-458.21982813,0.00021917,3]
[348870106,1736835693976,500.0,0.00024,30]
[348870109,1736835848374,1000.0,0.00025,120]
[348870110,1736835898538,165.48056,0.00013973,2]
[348870112,1736836032022,-241.3486446,0.00019961,2]
[348870113,1736836032044,-189.689,0.00019961,2]
[348870114,1736836032067,-1000.0,0.0002,20]
[348870115,1736836032090,-767.58383929,0.00020026,2]
[348870116,1736836050099,-497.66155809,0.00019933,2]
[348870117,1736836051104,-230.73833633,0.00019933,2]
[348870118,1736836051127,-2302.59174487,0.00020026,2]
[348870126,1736836116800,237.1600633,0.0001,7]
[348870131,1736836152109,-1152.52148812,0.00019,4]
[348870134,1736836206852,152.21073244,0.00019,2]
[348870215,1736836238290,-165.899343,0.00019849,2]
[348870217,1736836238301,-300.0,0.00020023,2]
[348870219,1736836238310,-394.91067128,0.00020023,2]
[348870222,1736836238322,-1099.13135451,0.00020023,2]
[348870227,1736836238418,-15973.31303338,0.00020023,2]
[348870252,1736836240179,-2169.64031312,0.00020023,2]
[348870269,1736836240332,-3431.11742922,0.00020023,2]
[348870506,1736836243159,-16704.32282631,0.00020023,2]
[348870526,1736836243312,-3062.56437218,0.00020023,2]
[348870528,1736836243322,-5372.52797352,0.00020034,2]
[348870530,1736836243334,-907.93448861,0.00020034,2]
[348870605,1736836246098,-5000.12856121,0.00020034,2]
[348870606,1736836246110,-2066.78999991,0.00020034,2]
[348870607,1736836261729,297.28627372,0.00019522,2]
[348870608,1736836261751,204.00497106,0.00019522,2]
[348870609,1736836305419,232.93539662,0.000189,2]
[348870610,1736836498377,240.0,0.00025,120]
[348870611,1736836503135,497.1959854,0.00015052,2]
[348870612,1736836503170,967.35497237,0.00015052,2]
[348870615,1736837042125,165.48056,0.00013973,2]
[348870617,1736837254134,-300.0,0.00018799,2]
[348870618,1736837254159,-2741.16963296,0.000188,8]
[348870619,1736837254195,-1877.16466238,0.000188,8]
[348870623,1736837347204,-5903.92688899,0.000188,8]
[348870626,1736837355103,-915.49393364,0.000188,8]
[348870627,1736837355126,-155.13878809,0.000188,2]
[348870628,1736837355147,-302.69733596,0.00019,2]
[348870629,1736837355168,-304.20989761,0.0001919,2]
[348870670,1736837432593,-1087.7523603,0.00019717,2]
[348870672,1736837432603,-188.42473274,0.00019881,2]
[348870882,1736837438176,-52.14974026,0.00019881,2]
[348870883,1736837438186,-300.0,0.00019929,2]
[348870884,1736837438195,-603.32997765,0.0001993,2]
[348870885,1736837438209,-18549.01873045,0.0001993,2]
[348870886,1736837438218,-500.0,0.00020024,7]
[348870887,1736837438228,-152.0,0.00020103,2]
[348870888,1736837438237,-183.8183458,0.00020117,2]
[348870889,1736837438246,-340.51217694,0.00020164,2]
[348870890,1736837438255,-156.57,0.00020164,2]
[348870891,1736837438266,-811.62602166,0.000205,2]
[348870892,1736837438275,-500.0,0.0002055,2]
[348870893,1736837438285,-192.0,0.00020555,2]
[348870894,1736837438296,-339.911839,0.000206,2]
[348870895,1736837438306,-221.4061487,0.000206,2]
[348870896,1736837438315,-251.367452,0.000206,2]
[348870897,1736837438325,-349.6239317,0.00020709,9]
[348870898,1736837438335,-390.359,0.0002082,2]
[348870899,1736837438344,-470.28436889,0.00020896,2]
[348870900,1736837438353,-162.1301,0.00020916,2]
[348870902,1736837438363,-162.1301,0.00020922,2]
[348870904,1736837438372,-162.1301,0.00020928,2]
[348870905,1736837438382,-162.1301,0.00020933,2]
[348870906,1736837438391,-811.6260216,0.00020939,2]
[348870907,1736837438401,-162.1301,0.00020939,2]
[348870908,1736837438411,-162.1301,0.00020945,2]
[348870909,1736837438421,-162.1301,0.00020951,2]
[348870910,1736837438434,-162.1301,0.00020957,2]
[348870911,1736837438444,-162.1301,0.00020962,2]
[348870912,1736837438455,-162.1301,0.00020968,2]
[348870913,1736837438464,-162.1301,0.00020974,2]
[348870914,1736837438474,-162.1301,0.0002098,2]
[348870915,1736837438483,-182.698,0.0002098,2]
[348870916,1736837438493,-162.1301,0.00020986,2]
[348870917,1736837438502,-30.92158027,0.00020991,2]
[348870918,1736837438596,-131.20851973,0.00020991,2]
[348870919,1736837438608,-162.1301,0.00020997,2]
[348870920,1736837438618,-711.7267714,0.00021,21]
[348871094,1736837512353,210.95955728,0.000189,2]
[348871095,1736838020419,165.48056,0.00013973,2]
[348871102,1736838425141,-150.0,0.000189,2]
[348871103,1736838425165,-130.13109114,0.0002,2]
[348871104,1736838428168,-2745.67922853,0.0002,2]
[348871105,1736838433155,-566.90413778,0.0002,2]
[348871106,1736838444114,-52.28554255,0.0002,2]
[348871107,1736838444136,-160.0,0.0002,2]
[348871108,1736838444160,-509.05048318,0.00020147,7]
[348871109,1736838444185,-1120.6046985,0.00020444,2]
[348871110,1736838444208,-240.5744735,0.00020594,2]
[348871111,1736838444231,-374.333,0.0002082,2]
[348871112,1736838444256,-59.72009843,0.00020995,2]
[348871201,1736838632824,-250.0,0.00020354,2]
[348871203,1736838632834,-465.26421845,0.00020844,2]
[348871205,1736838632844,-302.60665372,0.0002089,4]
[348871207,1736838632854,-288.2732286,0.00021,21]
[348871209,1736838632863,-1000.0,0.00021,2]
[348871211,1736838632873,-162.1301,0.00021003,2]
[348871213,1736838632883,-162.1301,0.00021009,2]
[348871215,1736838632892,-162.1301,0.00021015,2]
[348871217,1736838632901,-162.1301,0.0002102,2]
[348871220,1736838632915,-14863.3680299,0.00021181,2]
[348871222,1736838632931,-500.0,0.00021181,2]
[348871683,1736838638374,-12664.6319701,0.00021181,2]
[348871685,1736838638383,-150.502,0.00021183,2]
[348871688,1736838638393,-548.61,0.00021183,2]
[348871690,1736838638403,-2033.444,0.00021183,2]
[348871692,1736838638412,-2325.399,0.00021183,2]
[348871694,1736838638421,-500.0,0.00021578,2]
[348871696,1736838638430,-352.9591083,0.000216,2]
[348871698,1736838638439,-3495.0,0.000216,4]
[348871699,1736838638449,-383.1995138,0.00021697,2]
[348871702,1736838638459,-1364.03049192,0.00021817,2]
[348871704,1736838638469,-357.50461511,0.00021817,3]
[348871706,1736838638479,-241.09870305,0.00021817,2]
[348871708,1736838638488,-196.96077666,0.00021886,2]
[348871710,1736838638497,-500.0,0.00021886,2]
[348871712,1736838638506,-266.55567038,0.00021886,2]
[348871713,1736838638515,-500.0,0.00021886,2]
[348871716,1736838638524,-500.0,0.00021886,2]
[348871719,1736838638533,-500.0,0.00021886,2]
[348871723,1736838638543,-500.0,0.00021886,2]
[348871726,1736838638552,-500.0,0.00021886,2]
[348871727,1736838638562,-238.8334181,0.00021886,2]
[348871730,1736838638572,-500.0,0.00021886,2]
[348871732,1736838638582,-500.0,0.00021886,2]
[348871734,1736838638591,-500.0,0.00021886,2]
[348871736,1736838638599,-490.50794462,0.00021886,2]
[348871738,1736838638609,-500.0,0.00021886,2]
[348871739,1736838638619,-203.95887554,0.00021886,2]
[348871741,1736838638627,-392.64645175,0.00021886,2]
[348871743,1736838638636,-500.0,0.00021886,2]
[348871745,1736838638646,-500.0,0.00021886,2]
[348871747,1736838638655,-500.0,0.00021886,2]
[348871749,1736838638665,-486.25233002,0.00021886,2]
[348871751,1736838638674,-500.0,0.00021886,2]
[348871753,1736838638683,-500.0,0.00021886,2]
[348871755,1736838638692,-500.0,0.00021886,2]
[348871757,1736838638700,-500.0,0.00021886,2]
[348871759,1736838638710,-18282.1514239,0.00021887,5]
[348871762,1736838638719,-8031.3936129,0.00021887,5]
[348871953,1736838640575,-377.0355793,0.00021886,2]
[348871967,1736838640695,-122.9644207,0.00021886,2]
[348871969,1736838640705,-7120.5355793,0.00021887,5]
[348872045,1736838643504,-761.81429967,0.00021887,5]
[348872062,1736838646571,-482.99,0.00021887,5]
[348872064,1736838881056,165.48056,0.00013973,2]
[348872073,1736839641136,-250.0,0.00018899,2]
[348872074,1736839641157,-150.0,0.000189,2]
[348872075,1736839641178,-276.4371515,0.00019029,2]
[348872076,1736839641198,-220.9127209,0.00019091,2]
[348872077,1736839641220,-241.3486446,0.00019178,2]
[348872078,1736839641241,-204.9672179,0.00019388,2]
[348872079,1736839641262,-170.05380415,0.00019718,2]
[348872080,1736839641284,-676.459295,0.00019818,2]
[348872081,1736839641306,-165.899343,0.00020146,2]
[348872082,1736839641329,-300.0,0.00020352,2]
[348872083,1736839641350,-173.27049206,0.00020352,2]
[348872084,1736839654285,-431.60307845,0.0001999,3]
[348872091,1736839748117,-7284.9918494,0.00016,2]
[348872092,1736839748140,-1152.52148812,0.00019,4]
[348872093,1736839748164,-2897.0,0.00019438,2]
[348872094,1736839748188,-5625.54174284,0.0001944,2]
[348872245,1736839837141,-338.229648,0.00018997,2]
[348872247,1736839837150,-83.26300846,0.00019439,2]
[348872367,1736839838497,-216.73699154,0.00019439,2]
[348872369,1736839838506,-30495.54351956,0.0001944,2]
[348872370,1736839838518,-802.63373246,0.0001989,2]
[348872373,1736839838528,-540.32031008,0.0001999,3]
[348872375,1736839838537,-554.50088274,0.00019999,2]
[348872377,1736839838547,-500.0,0.00019999,2]
[348872379,1736839838558,-227.76002525,0.00019999,2]
[348872381,1736839838568,-247.46656297,0.00019999,2]
[348872383,1736839838578,-5677.33163885,0.0002,5]
[348872385,1736839838589,-611.556,0.0002,5]
[348872387,1736839838605,-8274.919218,0.0002,5]
[348872392,1736839838636,-867.97582541,0.0002,5]
[348872394,1736839838648,-1500.0,0.0002,5]
[348872396,1736839838659,-8682.04521568,0.0002,5]
[348872405,1736839838735,-484.89626529,0.0002,5]
[348872737,1736839843774,-610.76419513,0.0002,5]
[348872738,1736839843785,-62634.98975961,0.0002,5]
[348872743,1736839843916,-3162.61325177,0.0002,5]
[348872755,1736839846717,-16662.29308918,0.0002,5]
[348872756,1736839846728,-9141.07571196,0.0002,5]
[348872757,1736839846738,-31101.03727908,0.0002,5]
[348872758,1736839870654,165.48056,0.00013973,2]
[348872759,1736839923992,150.0,0.000189,2]
[348872767,1736840757519,165.48056,0.00013973,2]
[348872932,1736840830554,17287.1131147,9.994e-05,2]
[348872933,1736840835166,-150.0,0.000189,2]
[348872934,1736840835189,-500.0,0.00019439,7]
[348872935,1736840835211,-501.29124478,0.00019644,2]
[348872936,1736840835232,-265.203,0.00019999,2]
[348872937,1736840835254,-300.0,0.00019999,2]
[348872938,1736840835280,-2009.21667889,0.0002,5]
[348872996,1736841033045,-888.1630493,0.000199,2]
[348872998,1736841033055,-300.0,0.00019999,2]
[348873001,1736841033065,-728.57038501,0.0002,5]
[348873003,1736841033076,-57447.34707075,0.0002,5]
[348873005,1736841033087,-1012.71877385,0.0002,5]
[348873147,1736841038882,-195.12810612,0.0002,5]
[348873148,1736841038892,-160.0,0.0002,2]
[348873150,1736841038901,-574.45622316,0.00020164,2]
[348873152,1736841038910,-169.114824,0.00020258,2]
[348873154,1736841038920,-500.0,0.00020352,2]
[348873155,1736841038929,-396.29806084,0.00020352,2]
[348873157,1736841038938,-888.16304923,0.00020425,2]
[348873159,1736841038947,-169.742498,0.00020521,2]
[348873160,1736841038956,-169.742498,0.00020603,2]
[348873162,1736841038966,-169.742498,0.00020685,2]
[348873164,1736841038976,-169.742498,0.00020767,2]
[348873165,1736841038984,-396.461,0.000208,2]
[348873167,1736841038993,-169.742498,0.00020849,2]
[348873169,1736841039002,-156.57,0.00020849,2]
[348873171,1736841039011,-169.742498,0.00020932,2]
[348873172,1736841039021,-888.16304923,0.0002095,2]
[348873174,1736841039030,-153.46480938,0.00021,2]
[348873176,1736841039039,-169.742498,0.00021014,2]
[348873178,1736841039048,-169.742498,0.00021096,2]
[348873179,1736841039057,-888.16304923,0.00021475,2]
[348873181,1736841039066,-191.5997569,0.00021667,2]
[348873183,1736841039075,-150.0,0.00021695,2]
[348873185,1736841039084,-79.88792333,0.00021695,2]
[348873219,1736841040915,-319.95599936,0.00021695,2]
[348873236,1736841044758,-1675.15607731,0.00021695,2]
[348873237,1736841044769,-2315.0,0.00021695,2]
[348873238,1736841044780,-420.0,0.00021777,2]
[348873239,1736841044790,-2183.7639227,0.000218,2]
[348873241,1736841046966,-830.99866869,0.000218,2]
[348873242,1736841046976,-3000.0,0.00021817,2]